{"text_format":"1","workbook":"xlsx","n_sheets":10,"sheets":["MENU","DASHBOARD","CLIENTES","FORNECEDORES","ESTOQUE","ENTRADAS (COMPRAS)","SAÍDAS (VENDAS)","Apoio","Impressão Relatório Entrada","Impressão Relatório Saída"],"not_rendered":{"charts":3,"images":1,"macros":1,"external_links":0,"defined_names":1,"comments":0,"pivot_tables":0},"unopened":[],"bounds":{"document_bytes":16777216,"sheet_cells":100000,"rows_first":2000,"rows_last":500,"rows_between":2000,"halvings":0,"cell_chars":16384,"cell_head_chars":4096},"cells_cut":0,"cells_raw":0,"read":"whole","date_system":"1900"}

{"sheet":"MENU","index":0,"n_rows":28,"n_cols":7,"rows_kept":28,"cut":false,"hidden":false,"merged":[]}
[]
[]
[]
[]
[]
[]
[]
[]
[]
[]
[]
[]
[]
[]
[]
[]
[]
[]
[]
[]
[]
[]
[]
[]
[]
[]
[]
[null,null,null,null,113,null,"R$ 70,00"]

{"sheet":"DASHBOARD","index":1,"n_rows":32,"n_cols":12,"rows_kept":32,"cut":false,"hidden":false,"merged":[[17,2,17,5],[17,8,17,11]]}
[2,null,null,null,null,null,null,null,1]
[null,null,"Mês:",{"$f":"INDEX(Apoio!C2:C13,A1,0)","v":"Fevereiro"},null,null,null,null,"Produto:",{"$f":"INDEX(PRODUTOS,I1,0)","v":{"$error":"#REF!"}}]
[]
[]
[null,null,"Entrada",{"$f":"IF(A1=1,D20,IF(A1=2,D21,IF(A1=3,D22,IF(A1=4,D23,IF(A1=5,D24,IF(A1=6,D25,IF(A1=7,D26,IF(A1=8,D27,IF(A1=9,D28,IF(A1=10,D29,IF(A1=11,D30,IF(A1=12,D31,\"\"))))))))))))","v":0},null,null,null,null,{"$f":"IFERROR(CONCATENATE(\"Entradas de \",J2,\" em: \",D2),\"\")","v":""},{"$f":"IFERROR(SUMPRODUCT(((MONTH('ENTRADAS (COMPRAS)'!$B$3:$B$10000)=DASHBOARD!A1)*('ENTRADAS (COMPRAS)'!$D$3:$D$10000=$J$2)*('ENTRADAS (COMPRAS)'!$H$3:$H$10000))),\"\")","v":""}]
[null,null,"Saída",{"$f":"IF(A1=1,E20,IF(A1=2,E21,IF(A1=3,E22,IF(A1=4,E23,IF(A1=5,E24,IF(A1=6,E25,IF(A1=7,E26,IF(A1=8,E27,IF(A1=9,E28,IF(A1=10,E29,IF(A1=11,E30,IF(A1=12,E31,\"\"))))))))))))","v":0},null,null,null,null,{"$f":"IFERROR(CONCATENATE(\"Saídas de: \",J2,\" em: \",D2),\"\")","v":""},{"$f":"IFERROR(SUMPRODUCT(((MONTH('SAÍDAS (VENDAS)'!$B$3:$B$10000)=DASHBOARD!A1)*('SAÍDAS (VENDAS)'!$D$3:$D$10000=$J$2)*('SAÍDAS (VENDAS)'!$H$3:$H$10000))),\"\")","v":""}]
[null,null,"Lucro",{"$f":"D6-D5","v":0},null,null,null,null,{"$f":"IFERROR(CONCATENATE(\"Lucro de: \",J2,\" em: \",D2),\"\")","v":""},{"$f":"IFERROR((J6-J5),\"\")","v":""}]
[]
[null,null,null,null,null,null,null,null,"Estoque Atual",{"$f":"IFERROR(VLOOKUP(J2,ESTOQUE!C3:E4998,3,FALSE),\"\")","v":""},{"$f":"IFERROR(CONCATENATE(J9,\" \",VLOOKUP(J2,ESTOQUE!C3:D4998,2,FALSE)),\"\")","v":""}]
[null,null,null,null,null,null,null,null,{"$f":"IFERROR(CONCATENATE(\"Qtd Entrada de: \",J2),\"\")","v":""},{"$f":"IFERROR(SUMPRODUCT(((MONTH('ENTRADAS (COMPRAS)'!$B$3:$B$10000)=DASHBOARD!A1)*('ENTRADAS (COMPRAS)'!$D$3:$D$10000=$J$2)*('ENTRADAS (COMPRAS)'!$F$3:$F$10000))),\"\")","v":""},{"$f":"IFERROR(CONCATENATE(J10,\" \",VLOOKUP(J2,ESTOQUE!C3:D4998,2,FALSE)),\"\")","v":""}]
[null,null,null,null,null,null,null,null,{"$f":"CONCATENATE(\"Qtd Saída de: \",J3)","v":"Qtd Saída de: "},{"$f":"IFERROR(SUMPRODUCT(((MONTH('SAÍDAS (VENDAS)'!$B$3:$B$10000)=DASHBOARD!A1)*('SAÍDAS (VENDAS)'!$D$3:$D$10000=$J$2)*('SAÍDAS (VENDAS)'!$F$3:$F$10000))),\"\")","v":""},{"$f":"IFERROR(CONCATENATE(J11,\" \",VLOOKUP(J2,ESTOQUE!C3:D4998,2,FALSE)),\"\")","v":""}]
[null,null,null,null,null,null,null,null,{"$f":"CONCATENATE(\"Movimentação de Estoque em: \",D2)","v":"Movimentação de Estoque em: Fevereiro"}]
[]
[]
[]
[]
[]
[null,null,"Visão Geral (Entradas x Saídas x Lucro)",null,null,null,null,null,{"$f":"IFERROR(CONCATENATE(\"Entradas e Saídas de : \",J2),\"\")","v":""}]
[null,null,"Mês","Entradas","Saídas","Lucro",null,null,"Mês","Entrada","Saída","Lucro"]
[null,1,"Janeiro",{"$f":"SUMPRODUCT(((MONTH('ENTRADAS (COMPRAS)'!$B$3:$B$10000)=DASHBOARD!B20)*('ENTRADAS (COMPRAS)'!$H$3:$H$10000)))","v":0},{"$f":"SUMPRODUCT(((MONTH('SAÍDAS (VENDAS)'!$B$3:$B$10000)=DASHBOARD!B20)*('SAÍDAS (VENDAS)'!$H$3:$H$10000)))","v":0},{"$f":"E20-D20","v":0},null,1,"Janeiro",{"$f":"IFERROR(SUMPRODUCT(((MONTH('ENTRADAS (COMPRAS)'!$B$3:$B$10000)=DASHBOARD!H20)*('ENTRADAS (COMPRAS)'!$D$3:$D$10000=$J$2)*('ENTRADAS (COMPRAS)'!$H$3:$H$10000))),\"\")","v":""},{"$f":"IFERROR(SUMPRODUCT(((MONTH('SAÍDAS (VENDAS)'!$B$3:$B$10000)=DASHBOARD!H20)*('SAÍDAS (VENDAS)'!$D$3:$D$10000=$J$2)*('SAÍDAS (VENDAS)'!$H$3:$H$10000))),\"\")","v":""},{"$f":"IFERROR((K20-J20),\"\")","v":""}]
[null,2,"Fevereiro",{"$f":"SUMPRODUCT(((MONTH('ENTRADAS (COMPRAS)'!$B$3:$B$10000)=DASHBOARD!B21)*('ENTRADAS (COMPRAS)'!$H$3:$H$10000)))","v":0},{"$f":"SUMPRODUCT(((MONTH('SAÍDAS (VENDAS)'!$B$3:$B$10000)=DASHBOARD!B21)*('SAÍDAS (VENDAS)'!$H$3:$H$10000)))","v":0},{"$f":"E21-D21","v":0},null,2,"Fevereiro",{"$f":"IFERROR(SUMPRODUCT(((MONTH('ENTRADAS (COMPRAS)'!$B$3:$B$10000)=DASHBOARD!H21)*('ENTRADAS (COMPRAS)'!$D$3:$D$10000=$J$2)*('ENTRADAS (COMPRAS)'!$H$3:$H$10000))),\"\")","v":""},{"$f":"IFERROR(SUMPRODUCT(((MONTH('SAÍDAS (VENDAS)'!$B$3:$B$10000)=DASHBOARD!H21)*('SAÍDAS (VENDAS)'!$D$3:$D$10000=$J$2)*('SAÍDAS (VENDAS)'!$H$3:$H$10000))),\"\")","v":""},""]
[null,3,"Março",{"$f":"SUMPRODUCT(((MONTH('ENTRADAS (COMPRAS)'!$B$3:$B$10000)=DASHBOARD!B22)*('ENTRADAS (COMPRAS)'!$H$3:$H$10000)))","v":0},{"$f":"SUMPRODUCT(((MONTH('SAÍDAS (VENDAS)'!$B$3:$B$10000)=DASHBOARD!B22)*('SAÍDAS (VENDAS)'!$H$3:$H$10000)))","v":0},0,null,3,"Março",{"$f":"IFERROR(SUMPRODUCT(((MONTH('ENTRADAS (COMPRAS)'!$B$3:$B$10000)=DASHBOARD!H22)*('ENTRADAS (COMPRAS)'!$D$3:$D$10000=$J$2)*('ENTRADAS (COMPRAS)'!$H$3:$H$10000))),\"\")","v":""},{"$f":"IFERROR(SUMPRODUCT(((MONTH('SAÍDAS (VENDAS)'!$B$3:$B$10000)=DASHBOARD!H22)*('SAÍDAS (VENDAS)'!$D$3:$D$10000=$J$2)*('SAÍDAS (VENDAS)'!$H$3:$H$10000))),\"\")","v":""},""]
[null,4,"Abril",{"$f":"SUMPRODUCT(((MONTH('ENTRADAS (COMPRAS)'!$B$3:$B$10000)=DASHBOARD!B23)*('ENTRADAS (COMPRAS)'!$H$3:$H$10000)))","v":0},{"$f":"SUMPRODUCT(((MONTH('SAÍDAS (VENDAS)'!$B$3:$B$10000)=DASHBOARD!B23)*('SAÍDAS (VENDAS)'!$H$3:$H$10000)))","v":0},0,null,4,"Abril",{"$f":"IFERROR(SUMPRODUCT(((MONTH('ENTRADAS (COMPRAS)'!$B$3:$B$10000)=DASHBOARD!H23)*('ENTRADAS (COMPRAS)'!$D$3:$D$10000=$J$2)*('ENTRADAS (COMPRAS)'!$H$3:$H$10000))),\"\")","v":""},{"$f":"IFERROR(SUMPRODUCT(((MONTH('SAÍDAS (VENDAS)'!$B$3:$B$10000)=DASHBOARD!H23)*('SAÍDAS (VENDAS)'!$D$3:$D$10000=$J$2)*('SAÍDAS (VENDAS)'!$H$3:$H$10000))),\"\")","v":""},""]
[null,5,"Maio",{"$f":"SUMPRODUCT(((MONTH('ENTRADAS (COMPRAS)'!$B$3:$B$10000)=DASHBOARD!B24)*('ENTRADAS (COMPRAS)'!$H$3:$H$10000)))","v":0},{"$f":"SUMPRODUCT(((MONTH('SAÍDAS (VENDAS)'!$B$3:$B$10000)=DASHBOARD!B24)*('SAÍDAS (VENDAS)'!$H$3:$H$10000)))","v":0},0,null,5,"Maio",{"$f":"IFERROR(SUMPRODUCT(((MONTH('ENTRADAS (COMPRAS)'!$B$3:$B$10000)=DASHBOARD!H24)*('ENTRADAS (COMPRAS)'!$D$3:$D$10000=$J$2)*('ENTRADAS (COMPRAS)'!$H$3:$H$10000))),\"\")","v":""},{"$f":"IFERROR(SUMPRODUCT(((MONTH('SAÍDAS (VENDAS)'!$B$3:$B$10000)=DASHBOARD!H24)*('SAÍDAS (VENDAS)'!$D$3:$D$10000=$J$2)*('SAÍDAS (VENDAS)'!$H$3:$H$10000))),\"\")","v":""},""]
[null,6,"Junho",{"$f":"SUMPRODUCT(((MONTH('ENTRADAS (COMPRAS)'!$B$3:$B$10000)=DASHBOARD!B25)*('ENTRADAS (COMPRAS)'!$H$3:$H$10000)))","v":0},{"$f":"SUMPRODUCT(((MONTH('SAÍDAS (VENDAS)'!$B$3:$B$10000)=DASHBOARD!B25)*('SAÍDAS (VENDAS)'!$H$3:$H$10000)))","v":0},0,null,6,"Junho",{"$f":"IFERROR(SUMPRODUCT(((MONTH('ENTRADAS (COMPRAS)'!$B$3:$B$10000)=DASHBOARD!H25)*('ENTRADAS (COMPRAS)'!$D$3:$D$10000=$J$2)*('ENTRADAS (COMPRAS)'!$H$3:$H$10000))),\"\")","v":""},{"$f":"IFERROR(SUMPRODUCT(((MONTH('SAÍDAS (VENDAS)'!$B$3:$B$10000)=DASHBOARD!H25)*('SAÍDAS (VENDAS)'!$D$3:$D$10000=$J$2)*('SAÍDAS (VENDAS)'!$H$3:$H$10000))),\"\")","v":""},""]
[null,7,"Julho",{"$f":"SUMPRODUCT(((MONTH('ENTRADAS (COMPRAS)'!$B$3:$B$10000)=DASHBOARD!B26)*('ENTRADAS (COMPRAS)'!$H$3:$H$10000)))","v":0},{"$f":"SUMPRODUCT(((MONTH('SAÍDAS (VENDAS)'!$B$3:$B$10000)=DASHBOARD!B26)*('SAÍDAS (VENDAS)'!$H$3:$H$10000)))","v":0},0,null,7,"Julho",{"$f":"IFERROR(SUMPRODUCT(((MONTH('ENTRADAS (COMPRAS)'!$B$3:$B$10000)=DASHBOARD!H26)*('ENTRADAS (COMPRAS)'!$D$3:$D$10000=$J$2)*('ENTRADAS (COMPRAS)'!$H$3:$H$10000))),\"\")","v":""},{"$f":"IFERROR(SUMPRODUCT(((MONTH('SAÍDAS (VENDAS)'!$B$3:$B$10000)=DASHBOARD!H26)*('SAÍDAS (VENDAS)'!$D$3:$D$10000=$J$2)*('SAÍDAS (VENDAS)'!$H$3:$H$10000))),\"\")","v":""},""]
[null,8,"Agosto",{"$f":"SUMPRODUCT(((MONTH('ENTRADAS (COMPRAS)'!$B$3:$B$10000)=DASHBOARD!B27)*('ENTRADAS (COMPRAS)'!$H$3:$H$10000)))","v":0},{"$f":"SUMPRODUCT(((MONTH('SAÍDAS (VENDAS)'!$B$3:$B$10000)=DASHBOARD!B27)*('SAÍDAS (VENDAS)'!$H$3:$H$10000)))","v":0},0,null,8,"Agosto",{"$f":"IFERROR(SUMPRODUCT(((MONTH('ENTRADAS (COMPRAS)'!$B$3:$B$10000)=DASHBOARD!H27)*('ENTRADAS (COMPRAS)'!$D$3:$D$10000=$J$2)*('ENTRADAS (COMPRAS)'!$H$3:$H$10000))),\"\")","v":""},{"$f":"IFERROR(SUMPRODUCT(((MONTH('SAÍDAS (VENDAS)'!$B$3:$B$10000)=DASHBOARD!H27)*('SAÍDAS (VENDAS)'!$D$3:$D$10000=$J$2)*('SAÍDAS (VENDAS)'!$H$3:$H$10000))),\"\")","v":""},""]
[null,9,"Setembro",{"$f":"SUMPRODUCT(((MONTH('ENTRADAS (COMPRAS)'!$B$3:$B$10000)=DASHBOARD!B28)*('ENTRADAS (COMPRAS)'!$H$3:$H$10000)))","v":0},{"$f":"SUMPRODUCT(((MONTH('SAÍDAS (VENDAS)'!$B$3:$B$10000)=DASHBOARD!B28)*('SAÍDAS (VENDAS)'!$H$3:$H$10000)))","v":0},0,null,9,"Setembro",{"$f":"IFERROR(SUMPRODUCT(((MONTH('ENTRADAS (COMPRAS)'!$B$3:$B$10000)=DASHBOARD!H28)*('ENTRADAS (COMPRAS)'!$D$3:$D$10000=$J$2)*('ENTRADAS (COMPRAS)'!$H$3:$H$10000))),\"\")","v":""},{"$f":"IFERROR(SUMPRODUCT(((MONTH('SAÍDAS (VENDAS)'!$B$3:$B$10000)=DASHBOARD!H28)*('SAÍDAS (VENDAS)'!$D$3:$D$10000=$J$2)*('SAÍDAS (VENDAS)'!$H$3:$H$10000))),\"\")","v":""},""]
[null,10,"Outubro",{"$f":"SUMPRODUCT(((MONTH('ENTRADAS (COMPRAS)'!$B$3:$B$10000)=DASHBOARD!B29)*('ENTRADAS (COMPRAS)'!$H$3:$H$10000)))","v":0},{"$f":"SUMPRODUCT(((MONTH('SAÍDAS (VENDAS)'!$B$3:$B$10000)=DASHBOARD!B29)*('SAÍDAS (VENDAS)'!$H$3:$H$10000)))","v":0},0,null,10,"Outubro",{"$f":"IFERROR(SUMPRODUCT(((MONTH('ENTRADAS (COMPRAS)'!$B$3:$B$10000)=DASHBOARD!H29)*('ENTRADAS (COMPRAS)'!$D$3:$D$10000=$J$2)*('ENTRADAS (COMPRAS)'!$H$3:$H$10000))),\"\")","v":""},{"$f":"IFERROR(SUMPRODUCT(((MONTH('SAÍDAS (VENDAS)'!$B$3:$B$10000)=DASHBOARD!H29)*('SAÍDAS (VENDAS)'!$D$3:$D$10000=$J$2)*('SAÍDAS (VENDAS)'!$H$3:$H$10000))),\"\")","v":""},""]
[null,11,"Novembro",{"$f":"SUMPRODUCT(((MONTH('ENTRADAS (COMPRAS)'!$B$3:$B$10000)=DASHBOARD!B30)*('ENTRADAS (COMPRAS)'!$H$3:$H$10000)))","v":0},{"$f":"SUMPRODUCT(((MONTH('SAÍDAS (VENDAS)'!$B$3:$B$10000)=DASHBOARD!B30)*('SAÍDAS (VENDAS)'!$H$3:$H$10000)))","v":0},0,null,11,"Novembro",{"$f":"IFERROR(SUMPRODUCT(((MONTH('ENTRADAS (COMPRAS)'!$B$3:$B$10000)=DASHBOARD!H30)*('ENTRADAS (COMPRAS)'!$D$3:$D$10000=$J$2)*('ENTRADAS (COMPRAS)'!$H$3:$H$10000))),\"\")","v":""},{"$f":"IFERROR(SUMPRODUCT(((MONTH('SAÍDAS (VENDAS)'!$B$3:$B$10000)=DASHBOARD!H30)*('SAÍDAS (VENDAS)'!$D$3:$D$10000=$J$2)*('SAÍDAS (VENDAS)'!$H$3:$H$10000))),\"\")","v":""},""]
[null,12,"Dezembro",{"$f":"SUMPRODUCT(((MONTH('ENTRADAS (COMPRAS)'!$B$3:$B$10000)=DASHBOARD!B31)*('ENTRADAS (COMPRAS)'!$H$3:$H$10000)))","v":0},{"$f":"SUMPRODUCT(((MONTH('SAÍDAS (VENDAS)'!$B$3:$B$10000)=DASHBOARD!B31)*('SAÍDAS (VENDAS)'!$H$3:$H$10000)))","v":0},0,null,12,"Dezembro",{"$f":"IFERROR(SUMPRODUCT(((MONTH('ENTRADAS (COMPRAS)'!$B$3:$B$10000)=DASHBOARD!H31)*('ENTRADAS (COMPRAS)'!$D$3:$D$10000=$J$2)*('ENTRADAS (COMPRAS)'!$H$3:$H$10000))),\"\")","v":""},{"$f":"IFERROR(SUMPRODUCT(((MONTH('SAÍDAS (VENDAS)'!$B$3:$B$10000)=DASHBOARD!H31)*('SAÍDAS (VENDAS)'!$D$3:$D$10000=$J$2)*('SAÍDAS (VENDAS)'!$H$3:$H$10000))),\"\")","v":""},""]
[null,null,"Total Anual",{"$f":"SUM(D20:D31)","v":0},{"$f":"SUM(E20:E31)","v":0},{"$f":"SUM(F20:F31)","v":0},null,null,"Total Anual",{"$f":"SUM(J20:J31)","v":0},{"$f":"SUM(K20:K31)","v":0},{"$f":"SUM(L20:L31)","v":0}]

{"sheet":"CLIENTES","index":2,"n_rows":2,"n_cols":7,"rows_kept":2,"cut":false,"hidden":false,"merged":[]}
[0]
["ID","NOME","CPF/CNPJ","ENDEREÇO","TELEFONE","CELULAR/WHATSAPP","E-MAIL"]

{"sheet":"FORNECEDORES","index":3,"n_rows":2,"n_cols":7,"rows_kept":2,"cut":false,"hidden":false,"merged":[]}
[1]
["ID","RAZÃO SOCIAL","CNPJ","ENDEREÇO","TELEFONE","CELULAR / WHATSAPP","E-MAIL"]

{"sheet":"ESTOQUE","index":4,"n_rows":2,"n_cols":8,"rows_kept":2,"cut":false,"hidden":false,"merged":[]}
[0]
["ID","CÓDIGO","PRODUTO","UND MEDIDA","ESTOQUE ATUAL","ESTOQUE MÍNIMO","PREÇO COMPRA","PREÇO VENDA"]

{"sheet":"ENTRADAS (COMPRAS)","index":5,"n_rows":2,"n_cols":10,"rows_kept":2,"cut":false,"hidden":false,"merged":[]}
[0]
["ID","DATA COMPRA","CÓDIGO","PRODUTO","Unidade","QUANTIDADE","PREÇO UN","TOTAL","FORNECEDOR","CNPJ"]

{"sheet":"SAÍDAS (VENDAS)","index":6,"n_rows":2,"n_cols":10,"rows_kept":2,"cut":false,"hidden":false,"merged":[]}
[0]
["ID","DATA VENDA","CÓDIGO","PRODUTO","Unidade","QUANTIDADE","PREÇO UN","TOTAL","CLIENTE","CPF/CNPJ"]

{"sheet":"Apoio","index":7,"n_rows":13,"n_cols":3,"rows_kept":13,"cut":false,"hidden":false,"merged":[]}
["Und Medida",null,"Meses"]
["un",null,"Janeiro"]
["m",null,"Fevereiro"]
["m2",null,"Março"]
["m3",null,"Abril"]
["Kg",null,"Maio"]
[null,null,"Junho"]
[null,null,"Julho"]
[null,null,"Agosto"]
[null,null,"Setembro"]
[null,null,"Outubro"]
[null,null,"Novembro"]
[null,null,"Dezembro"]

{"sheet":"Impressão Relatório Entrada","index":8,"n_rows":2,"n_cols":10,"rows_kept":2,"cut":false,"hidden":false,"merged":[[0,1,0,9]]}
[null,"RELATÓRIO DE ENTRADA"]
["ID","DATA COMPRA","CÓDIGO","PRODUTO","Unidade","QUANTIDADE","PREÇO UN","TOTAL","FORNECEDOR","CNPJ"]

{"sheet":"Impressão Relatório Saída","index":9,"n_rows":2,"n_cols":10,"rows_kept":2,"cut":false,"hidden":false,"merged":[[0,1,0,9]]}
[null,"RELATÓRIO DE SAÍDA"]
["ID","DATA VENDA","CÓDIGO","PRODUTO","Unidade","QUANTIDADE","PREÇO UN","TOTAL","CLIENTE","CPF/CNPJ"]